fUST/lending_fUST_20240331
["ID","MTS","AMOUNT","RATE_DAILY","PERIOD"]
[321044546,1711815040869,-240.51603124,0.00040976,4]
[321044547,1711815040879,-1224.28,0.00040976,7]
[321044548,1711815040890,-500.0,0.00040976,4]
[321044549,1711815040899,-1319.17174466,0.00040976,4]
[321044564,1711815041037,-331.02825534,0.00040976,4]
[321044566,1711815041046,-743.69,0.00040976,4]
[321044568,1711815041056,-500.0,0.00040976,4]
[321044570,1711815041066,-1120.49,0.00040976,4]
[321044572,1711815041076,-500.0,0.00040976,4]
[321044574,1711815041085,-500.0,0.00040976,4]
[321044577,1711815041096,-1108.51,0.00040976,4]
[321044578,1711815041106,-500.0,0.00040976,4]
[321044580,1711815041115,-513.52740792,0.00040976,4]
[321044582,1711815041124,-500.0,0.00040976,4]
[321044584,1711815041133,-500.0,0.00040976,4]
[321044586,1711815041142,-500.0,0.00040976,4]
[321044588,1711815041151,-500.0,0.00040976,4]
[321044590,1711815041160,-500.0,0.00040976,4]
[321044592,1711815041169,-500.0,0.00040976,4]
[321044594,1711815041179,-500.0,0.00040976,4]
[321044596,1711815041188,-500.0,0.00040976,4]
[321044598,1711815041197,-500.0,0.00040976,4]
[321044600,1711815041207,-500.0,0.00040976,4]
[321044602,1711815041216,-500.0,0.00040976,4]
[321044604,1711815041225,-500.0,0.00040976,4]
[321044605,1711815041234,-566.86,0.00040976,4]
[321044606,1711815041243,-151.0,0.00040976,2]
[321044607,1711815041252,-151.0,0.00040976,2]
[321044608,1711815041262,-151.0,0.00040976,2]
[321044610,1711815041271,-151.0,0.00040976,2]
[321044611,1711815041280,-151.0,0.00040976,2]
[321044612,1711815041290,-151.0,0.00040976,2]
[321044613,1711815041366,-151.0,0.00040976,2]
[321044614,1711815041376,-500.0,0.00040976,4]
[321044615,1711815041386,-504.25176832,0.00040976,4]
[321044616,1711815041395,-564.85,0.00040976,4]
[321044617,1711815041405,-151.0,0.00040976,2]
[321044619,1711815041414,-151.0,0.00040976,2]
[321044620,1711815041424,-500.0,0.00040977,4]
[321044622,1711815041433,-500.0,0.00040977,4]
[321044624,1711815041442,-500.0,0.00040977,4]
[321044626,1711815041452,-500.0,0.00040977,4]
[321044628,1711815041462,-582.7962362,0.00040977,4]
[321044629,1711815041472,-500.0,0.00040977,4]
[321044630,1711815041482,-500.0,0.00040977,4]
[321044631,1711815041492,-500.0,0.00040977,4]
[321044632,1711815041501,-500.0,0.00040977,4]
[321044633,1711815041512,-500.0,0.00040977,4]
[321044634,1711815041522,-500.0,0.00040977,4]
[321044635,1711815041531,-500.0,0.00040977,4]
[321044636,1711815041540,-500.0,0.00040977,4]
[321044637,1711815041550,-501.03719431,0.00040977,2]
[321044638,1711815041559,-500.0,0.00040977,4]
[321044639,1711815041569,-785.95,0.00040977,4]
[321044640,1711815041578,-500.0,0.00040977,4]
[321044641,1711815041588,-292.17803486,0.00040977,4]
[321044642,1711815041597,-500.0,0.00040977,4]
[321044643,1711815041607,-501.40174806,0.00040977,4]
[321044644,1711815041616,-173.890747,0.00040977,2]
[321044645,1711815041626,-173.890745,0.00040977,2]
[321044646,1711815041634,-151.0,0.00040977,2]
[321044647,1711815041644,-2656.44277302,0.00040981,4]
[321044648,1711815041654,-200.88152778,0.00040984,4]
[321044649,1711815041668,-351.18641634,0.00040992,2]
[321044650,1711815041677,-500.0,0.00040992,4]
[321044651,1711815041687,-2281.77787954,0.00040993,4]
[321044652,1711815041696,-219.27922144,0.00040993,4]
[321044653,1711815041706,-200.03003501,0.00040993,4]
[321044654,1711815041715,-155.84034179,0.00040993,4]
[321044655,1711815041725,-256.33278647,0.00040993,4]
[321044656,1711815041735,-186.77073307,0.00040993,4]
[321044657,1711815041747,-399.3559936,0.00040993,4]
[321044658,1711815041758,-255.45137173,0.00040993,4]
[321044659,1711815041768,-206.90646323,0.00040993,4]
[321044660,1711815041777,-7955.87877975,0.00040993,4]
[321044661,1711815041787,-369.13671707,0.00040993,4]
[321044662,1711815041796,-433.80651329,0.00040993,4]
[321044663,1711815041806,-3404.14837088,0.00040993,4]
[321044664,1711815041819,-464.78866184,0.00040993,4]
[321044665,1711815041832,-367.733038,0.00040993,4]
[321044666,1711815041843,-1090.35511393,0.00040993,4]
[321044687,1711815043505,-500.0,0.00040974,4]
[321044688,1711815043515,-151.0,0.00040976,2]
[321044689,1711815043525,-151.0,0.00040976,2]
[321044690,1711815043535,-151.0,0.00040977,2]
[321044691,1711815043545,-193.69416109,0.00040993,4]
[321044692,1711815043554,-47.62750216,0.00040993,4]
[321044693,1711815043566,-499.56817808,0.00040993,4]
[321044694,1711815043577,-446.84508827,0.00040993,4]
[321044695,1711815043584,-260.89467298,0.00040993,4]
[321044696,1711815043593,-4055.67909224,0.00040993,4]
[321044697,1711815043602,-283.63401118,0.00040993,7]
[321044698,1711815043611,-156.26974389,0.00040993,4]
[321044699,1711815043621,-155.36132151,0.00040993,4]
[321044700,1711815043632,-883.25263979,0.00040993,4]
[321044701,1711815043641,-433.1585568,0.00040993,4]
[321044702,1711815043650,-980.95855114,0.00040993,4]
[321044703,1711815043662,-270.98496649,0.00040993,4]
[321044704,1711815043673,-1000.0,0.00040996,120]
[321044705,1711815043683,-151.0,0.00040996,2]
[321044706,1711815043693,-157.59963815,0.00040999,4]
[321044707,1711815043702,-500.0,0.00040999,4]
[321044708,1711815043712,-373.54423295,0.00040999,6]
[321044709,1711815043721,-15315.13365124,0.00041,5]
[321044710,1711815043732,-329.37437641,0.00041,5]
[321044711,1711815043753,-500.0,0.00040973,4]
[321044712,1711815043821,-6351.15197235,0.00041,5]
[321044713,1711815043831,-1595.68137449,0.00041,30]
[321044738,1711815046422,-151.0,0.00040996,2]
[321044739,1711815046432,-6711.94210844,0.00041,30]
[321044740,1711815046481,-1820.37067697,0.00041,30]
[321044741,1711815046490,-7795.82134869,0.00041,120]
[321044742,1711815046499,-151.0,0.00041,2]
[321044743,1711815046508,-151.0,0.00041,2]
[321044745,1711815046517,-166.666666,0.00041096,2]
[321044746,1711815046526,-500.0,0.00041096,31]
[321044748,1711815046536,-500.0,0.00041096,31]
[321044749,1711815046545,-500.0,0.00041096,31]
[321044750,1711815046554,-500.0,0.00041096,31]
[321044751,1711815046563,-500.0,0.00041096,31]
[321044752,1711815046572,-529.1595668,0.00041096,31]
[321044753,1711815046582,-500.0,0.00041096,31]
[321044754,1711815046591,-500.0,0.00041096,31]
[321044755,1711815046600,-296.45633341,0.00041096,31]
[321044756,1711815046610,-500.0,0.00041096,31]
[321044757,1711815046619,-500.0,0.00041096,31]
[321044758,1711815046628,-3448.58,0.00041247,4]
[321044759,1711815046637,-500.0,0.00041247,4]
[321044760,1711815046646,-799.41090813,0.00041247,4]
[321044762,1711815065224,9362.11126567,0.0003,2]
[321044763,1711815065262,3619.88873433,0.0003,2]
[321044765,1711815178313,9512.83861687,0.00040697,3]
[321044769,1711815609678,1009.37540095,0.00032239,2]
[321044770,1711815610779,639.46877005,0.00033851,2]
[321044771,1711815611935,620.9734385,0.00035544,2]
[321044772,1711815685786,2298.3867537,0.00035189,2]
[321044775,1711816037157,-154.93802479,0.0003732,4]
[321044776,1711816037177,-620.04867193,0.00037321,2]
[321044777,1711816037197,-202.3341884,0.00038086,120]
[321044778,1711816037218,-1501.2876473,0.00038308,2]
[321044779,1711816037237,-762.8572877,0.00038384,2]
[321044780,1711816037258,-209.510756,0.00038586,2]
[321044781,1711816037278,-851.46112636,0.000388,2]
[321044782,1711816044100,-248.53887364,0.000388,2]
[321044783,1711816044122,-373.43962929,0.000389,2]
[321044784,1711816044142,-176.7455745,0.00039456,2]
[321044785,1711816044161,-171.704629,0.00039531,2]
[321044786,1711816044181,-400.0,0.00039554,5]
[321044787,1711816044203,-9207.59072357,0.00039555,2]
[321044788,1711816049113,-30784.92210691,0.00039555,2]
[321044789,1711816049132,-500.0,0.00039556,15]
[321044790,1711816049153,-500.0,0.00039556,15]
[321044791,1711816049172,-500.0,0.00039556,15]
[321044792,1711816049192,-379.82380626,0.00039556,15]
[321044793,1711816049211,-527.58705749,0.00039556,15]
[321044794,1711816049232,-500.0,0.00039556,15]
[321044795,1711816049253,-500.0,0.00039556,15]
[321044796,1711816049370,-500.0,0.00039556,15]
[321044797,1711816049391,-500.0,0.00039556,15]
[321044798,1711816049412,-629.22950676,0.00039556,15]
[321044799,1711816049432,-500.0,0.00039556,15]
[321044800,1711816049451,-500.0,0.00039556,15]
[321044801,1711816049473,-500.0,0.00039556,15]
[321044802,1711816049493,-500.0,0.00039556,15]
[321044803,1711816049515,-500.0,0.00039556,15]
[321044804,1711816049535,-500.0,0.00039556,15]
[321044805,1711816049557,-500.0,0.00039556,15]
[321044806,1711816049577,-500.0,0.00039556,15]
[321044807,1711816049597,-500.0,0.00039556,15]
[321044808,1711816049617,-500.0,0.00039556,15]
[321044809,1711816049636,-500.0,0.00039556,15]
[321044810,1711816049656,-500.0,0.00039556,15]
[321044811,1711816049676,-500.0,0.00039556,15]
[321044812,1711816049696,-500.0,0.00039556,15]
[321044813,1711816049717,-500.0,0.00039556,15]
[321044814,1711816049738,-500.0,0.00039556,15]
[321044815,1711816049758,-500.0,0.00039556,15]
[321044816,1711816049779,-500.0,0.00039556,15]
[321044817,1711816049800,-500.0,0.00039556,15]
[321044818,1711816049820,-500.0,0.00039556,15]
[321044819,1711816049839,-500.0,0.00039556,15]
[321044820,1711816049860,-500.0,0.00039556,15]
[321044821,1711816049880,-500.0,0.00039556,15]
[321044822,1711816049900,-30352.973498,0.00039557,2]
[321044823,1711816049921,-158.87149199,0.00039601,9]
[321044824,1711816049942,-176.74557447,0.00039928,2]
[321044825,1711816049962,-168.638424,0.0004,2]
[321044826,1711816049982,-171.526531,0.0004,2]
[321044827,1711816050005,-176.74557447,0.000404,2]
[321044828,1711816050027,-176.74557447,0.00040872,2]
[321044829,1711816050048,-320.20578324,0.0004097,4]
[321044830,1711816050073,-239.29407615,0.0004097,3]
[321044831,1711816050094,-500.0,0.0004097,4]
[321044832,1711816050115,-502.66147515,0.0004097,4]
[321044833,1711816050135,-702.84627136,0.0004097,4]
[321044834,1711816050155,-1980.13,0.0004097,4]
[321044835,1711816050175,-3331.55,0.0004097,4]
[321044836,1711816050195,-812.82,0.0004097,4]
[321044837,1711816050217,-4055.67909224,0.00040971,4]
[321044838,1711816050240,-471.07806693,0.00040971,31]
[321044839,1711816050261,-504.88828958,0.00040972,4]
[321044840,1711816050280,-500.0,0.00040972,4]
[321044841,1711816050301,-500.0,0.00040972,4]
[321044842,1711816050320,-500.0,0.00040972,4]
[321044843,1711816050341,-500.0,0.00040972,4]
[321044844,1711816050363,-443.86405559,0.00040972,4]
[321044845,1711816050383,-500.0,0.00040972,4]
[321044846,1711816050404,-433.90975819,0.00040972,4]
[321044847,1711816051135,-66.09024181,0.00040972,4]
[321044848,1711816051154,-500.0,0.00040972,4]
[321044849,1711816051174,-500.0,0.00040972,4]
[321044850,1711816051194,-500.0,0.00040972,4]
[321044851,1711816051214,-500.0,0.00040972,4]
[321044852,1711816051233,-461.51627378,0.00040972,4]
[321044853,1711816059840,9964.60264177,0.00034837,2]
[321044854,1711816079845,9964.60264177,0.00034837,2]
[321044855,1711816093842,9964.60264177,0.00034837,2]
[321044856,1711816109939,9964.60264177,0.00034489,2]
[321044857,1711816135839,3104.92656504,0.00034489,2]
[321044859,1711816188794,616.0,0.00040706,4]
[321044911,1711816232694,-154.93802479,0.00038869,4]
[321044913,1711816232703,-248.95975286,0.0003887,2]
[321044915,1711816232712,-500.0,0.00039555,4]
[321044917,1711816232721,-500.0,0.00039829,4]
[321044919,1711816232730,-400.0,0.00039999,5]
[321044920,1711816232740,-34136.05520574,0.0004,2]
[321044921,1711816232749,-169.337505,0.0004,2]
[321044922,1711816232758,-500.0,0.00040103,4]
[321044923,1711816232767,-153.0,0.000402,2]
[321044924,1711816232777,-500.0,0.00040376,4]
[321044925,1711816232786,-500.0,0.0004065,4]
[321044926,1711816232795,-153.0,0.000407,2]
[321044927,1711816232804,-153.0,0.000407,2]
[321044928,1711816232814,-500.0,0.00040924,4]
[321044929,1711816232823,-500.0,0.00040969,31]
[321044930,1711816232833,-500.0,0.00040969,31]
[321044932,1711816232842,-512.92295068,0.00040969,31]
[321044933,1711816232854,-2369.8,0.0004097,4]
[321044934,1711816232864,-500.0,0.0004097,4]
[321044935,1711816232874,-2397.92,0.0004097,4]
[321044936,1711816232884,-500.0,0.0004097,4]
[321044938,1711816232894,-500.0,0.0004097,4]
[321044939,1711816232903,-1232.18,0.0004097,4]
[321044940,1711816232913,-2049.71,0.0004097,4]
[321044941,1711816232924,-2167.38,0.0004097,4]
[321044942,1711816232933,-2431.06,0.0004097,4]
[321044943,1711816232942,-500.0,0.0004097,4]
[321044944,1711816232952,-339.98468164,0.0004097,4]
[321044945,1711816232962,-1897.62,0.0004097,4]
[321044946,1711816232971,-11405.8,0.0004097,4]
[321044947,1711816232982,-37583.16521487,0.00040971,2]
[321044948,1711816232991,-406.93883411,0.00040971,31]
[321044949,1711816233001,-38.48372622,0.00040972,4]
[321044950,1711816233010,-500.0,0.00040972,4]
[321044951,1711816233019,-887.64,0.00040972,4]
[321044952,1711816233031,-500.0,0.00040972,4]
[321044953,1711816233041,-500.0,0.00040972,4]
[321044954,1711816233051,-610.55,0.00040972,4]
[321044955,1711816233061,-500.0,0.00040972,4]
[321044956,1711816233070,-600.15,0.00040972,4]
[321044957,1711816233080,-500.0,0.00040972,4]
[321044958,1711816233090,-151.0,0.00040972,4]
[321044959,1711816233102,-500.0,0.00040972,4]
[321044960,1711816233111,-500.0,0.00040972,4]
[321044961,1711816233121,-501.8418935,0.00040972,4]
[321044962,1711816233130,-500.0,0.00040972,4]
[321044963,1711816233139,-502.12769212,0.00040972,4]
[321044964,1711816233148,-500.0,0.00040972,4]
[321044965,1711816233157,-500.0,0.00040972,4]
[321044966,1711816233166,-500.0,0.00040972,4]
[321044967,1711816233175,-500.0,0.00040972,4]
[321044968,1711816233185,-396.66502187,0.00040972,4]
[321044969,1711816233194,-171.07416498,0.00040972,4]
[321044970,1711816233203,-500.0,0.00040972,4]
[321044971,1711816233212,-708.27,0.00040972,4]
[321044972,1711816233222,-500.0,0.00040972,4]
[321044973,1711816233231,-744.41,0.00040972,4]
[321044974,1711816233240,-500.0,0.00040972,4]
[321044975,1711816233249,-508.69831733,0.00040972,4]
[321044976,1711816233258,-500.0,0.00040972,4]
[321044977,1711816233270,-500.0,0.00040972,4]
[321044978,1711816233280,-500.0,0.00040972,4]
[321044979,1711816233289,-500.0,0.00040972,4]
[321044980,1711816233298,-500.0,0.00040972,4]
[321044981,1711816233307,-500.0,0.00040972,4]
[321044982,1711816233316,-410.65867331,0.00040972,4]
[321045171,1711816240574,-158.87149199,0.000399,9]
[321045173,1711816240584,-3920.57,0.0004097,4]
[321045175,1711816240594,-89.34132669,0.00040972,4]
[321045177,1711816240606,-500.0,0.00040972,4]
[321045179,1711816240615,-500.0,0.00040972,4]
[321045180,1711816240625,-500.0,0.00040972,4]
[321045182,1711816240634,-500.0,0.00040972,4]
[321045184,1711816240644,-500.0,0.00040972,4]
[321045186,1711816240653,-273.7702853,0.00040972,4]
[321045188,1711816240663,-500.0,0.00040972,4]
[321045190,1711816240673,-627.2957788,0.00040972,4]
[321045192,1711816240683,-500.0,0.00040972,4]
[321045194,1711816240692,-587.33,0.00040972,4]
[321045196,1711816240702,-500.0,0.00040972,4]
[321045198,1711816240711,-500.0,0.00040972,4]
[321045200,1711816240721,-420.84054722,0.00040972,4]
[321045230,1711816243697,-168.10255007,0.00040969,31]
[321045231,1711816243707,-82.42816963,0.00040972,4]
[321045232,1711816243716,-500.0,0.00040972,4]
[321045233,1711816243726,-602.96,0.00040972,4]
[321045234,1711816243735,-573.86,0.00040972,4]
[321045235,1711816243745,-229.22469598,0.00040972,4]
[321045236,1711816243754,-500.0,0.00040972,4]
[321045237,1711816243764,-646.95,0.00040972,4]
[321045238,1711816243773,-500.0,0.00040972,4]
[321045239,1711816243783,-500.0,0.00040972,4]
[321045240,1711816243792,-500.0,0.00040972,4]
[321045241,1711816243802,-500.0,0.00040972,4]
[321045242,1711816243811,-717.06,0.00040972,4]
[321045243,1711816243886,-500.0,0.00040972,4]
[321045244,1711816243897,-500.0,0.00040972,4]
[321045245,1711816243906,-500.0,0.00040972,4]
[321045246,1711816243915,-500.0,0.00040972,4]
[321045247,1711816243924,-503.18711864,0.00040972,4]
[321045248,1711816243933,-500.0,0.00040972,4]
[321045249,1711816243943,-641.25,0.00040972,4]
[321045250,1711816243952,-500.0,0.00040972,4]
[321045251,1711816243961,-500.0,0.00040972,4]
[321045252,1711816243971,-500.0,0.00040972,4]
[321045253,1711816243980,-500.0,0.00040972,4]
[321045254,1711816243990,-500.0,0.00040972,4]
[321045255,1711816244000,-500.0,0.00040972,4]
[321045256,1711816244009,-500.0,0.00040972,4]
[321045257,1711816244018,-2633.24,0.00040972,4]
[321045258,1711816244028,-500.0,0.00040972,4]
[321045259,1711816244039,-502.19148715,0.00040972,4]
[321045260,1711816244049,-500.0,0.00040972,4]
[321045261,1711816244058,-500.0,0.00040972,4]
[321045262,1711816244067,-500.0,0.00040972,4]
[321045263,1711816244078,-500.0,0.00040972,4]
[321045264,1711816244087,-500.0,0.00040972,4]
[321045265,1711816244096,-70.35872201,0.00040972,4]
[321045266,1711816244267,-429.64127799,0.00040972,4]
[321045267,1711816244276,-500.0,0.00040972,4]
[321045268,1711816244285,-500.0,0.00040972,4]
[321045269,1711816244295,-500.0,0.00040972,4]
[321045270,1711816244304,-500.0,0.00040972,4]
[321045271,1711816244313,-4525.38,0.00040972,4]
[321045272,1711816244321,-500.0,0.00040972,4]
[321045273,1711816244330,-500.0,0.00040972,4]
[321045274,1711816244339,-500.0,0.00040972,4]
[321045275,1711816244349,-500.0,0.00040972,4]
[321045276,1711816244358,-500.0,0.00040972,4]
[321045277,1711816244367,-509.01118302,0.00040972,4]
[321045278,1711816244381,-1315.73,0.00040972,4]
[321045279,1711816244397,-1019.08,0.00040972,4]
[321045280,1711816244410,-496.94093698,0.00040972,4]
[321045281,1711816244425,-500.0,0.00040972,4]
[321045282,1711816244440,-500.0,0.00040972,4]
[321045283,1711816244455,-586.19,0.00040972,4]
[321045284,1711816244469,-500.0,0.00040972,4]
[321045285,1711816244485,-2802.82,0.00040972,4]
[321045286,1711816244501,-7.80286117,0.00040972,4]
[321045299,1711816246600,-189.35375964,0.00040971,4]
[321045300,1711816246611,-492.19713883,0.00040972,4]
[321045301,1711816246620,-2464.97,0.00040972,4]
[321045302,1711816246630,-842.33,0.00040972,4]
[321045303,1711816246639,-500.0,0.00040972,4]
[321045304,1711816246649,-500.0,0.00040972,4]
[321045305,1711816246658,-1844.99,0.00040972,2]
[321045306,1711816246668,-500.0,0.00040972,4]
[321045307,1711816246677,-500.0,0.00040972,4]
[321045308,1711816246686,-500.0,0.00040972,4]
[321045309,1711816246696,-500.0,0.00040972,4]
[321045310,1711816246706,-1088.67,0.00040972,4]
[321045311,1711816246715,-151.0,0.00040972,2]
[321045312,1711816246725,-605.99746959,0.00040972,4]
[321045313,1711816246735,-500.0,0.00040972,4]
[321045314,1711816246745,-500.0,0.00040972,4]
[321045315,1711816246755,-500.0,0.00040972,4]
[321045316,1711816246764,-500.0,0.00040972,4]
[321045317,1711816246773,-500.0,0.00040972,4]
[321045318,1711816246782,-500.0,0.00040972,4]
[321045319,1711816246791,-500.0,0.00040972,4]
[321045320,1711816246800,-507.86515138,0.00040972,4]
[321045321,1711816246810,-599.13,0.00040972,4]
[321045322,1711816246820,-500.0,0.00040972,4]
[321045323,1711816246829,-500.0,0.00040972,4]
[321045324,1711816246838,-500.0,0.00040972,4]
[321045325,1711816246848,-500.0,0.00040972,4]
[321045326,1711816246857,-500.0,0.00040972,4]
[321045327,1711816246868,-9002.71,0.00040972,4]
[321045328,1711816246877,-690.44,0.00040972,4]
[321045329,1711816246886,-500.0,0.00040972,4]
[321045330,1711816246895,-4542.43,0.00040972,4]
[321045331,1711816246905,-2729.57,0.00040972,4]
[321045332,1711816246914,-500.0,0.00040972,4]
[321045333,1711816246923,-404.6299014,0.00040972,4]
[321045334,1711816246932,-292.52351425,0.00040972,4]
[321045335,1711816246941,-500.0,0.00040972,4]
[321045336,1711816246950,-500.0,0.00040972,4]
[321045337,1711816246959,-31582.66,0.00040972,4]
[321045338,1711816246969,-500.0,0.00040972,4]
[321045339,1711816246978,-374.09857618,0.00040972,4]
[321045340,1711816246987,-500.0,0.00040972,4]
[321045341,1711816246997,-500.0,0.00040972,4]
[321045342,1711816247005,-500.0,0.00040972,4]
[321045343,1711816247015,-500.0,0.00040972,4]
[321045344,1711816247024,-7561.35,0.00040972,4]
[321045345,1711816247034,-500.0,0.00040972,4]
[321045346,1711816247046,-500.0,0.00040972,4]
[321045347,1711816247055,-500.0,0.00040972,4]
[321045348,1711816247064,-500.0,0.00040972,4]
[321045349,1711816247074,-737.35,0.00040972,4]
[321045350,1711816247085,-500.0,0.00040972,4]
[321045351,1711816247094,-504.94442481,0.00040972,4]
[321045352,1711816247103,-500.0,0.00040972,4]
[321045353,1711816247114,-500.0,0.00040972,4]
[321045354,1711816247123,-500.0,0.00040972,4]
[321045355,1711816247132,-152.79081871,0.00040972,4]
[321045356,1711816247141,-500.0,0.00040972,4]
[321045357,1711816247150,-500.0,0.00040972,4]
[321045358,1711816247160,-500.0,0.00040972,4]
[321045359,1711816247169,-1134.27,0.00040972,4]
[321045360,1711816247178,-500.0,0.00040972,4]
[321045361,1711816247188,-500.0,0.00040972,4]
[321045362,1711816247197,-500.0,0.00040972,4]
[321045363,1711816247206,-500.0,0.00040972,4]
[321045364,1711816247215,-6848.29,0.00040972,4]
[321045365,1711816247224,-291.82889165,0.00040972,4]
[321045366,1711816247234,-1443.39,0.00040972,4]
[321045367,1711816247244,-500.0,0.00040972,4]
[321045368,1711816247254,-500.0,0.00040972,4]
[321045369,1711816247263,-500.0,0.00040972,4]
[321045370,1711816247273,-11.95636781,0.00040972,4]
[321045372,1711816294741,500.0,0.00040706,2]
[321045373,1711816503839,-165.97316857,0.00038872,2]
[321045374,1711816503862,-598.85083534,0.00039007,2]
[321045375,1711816503886,-4263.0844094,0.00039008,2]
[321045376,1711816503908,-400.0,0.00039554,5]
[321045377,1711816503931,-3192.74,0.00039555,4]
[321045378,1711816503955,-2271.05,0.00039555,4]
[321045379,1711816503978,-500.0,0.00039555,4]
[321045380,1711816504001,-2298.01,0.00039555,4]
[321045381,1711816504023,-577.77363524,0.00039555,4]
[321045382,1711816504163,-2077.07,0.00039555,4]
[321045383,1711816504188,-10159.86158669,0.00039555,4]
[321045384,1711816508673,-770.69841331,0.00039555,4]
[321045385,1711816508698,-3757.21,0.00039555,4]
[321045386,1711816508723,-500.0,0.00039555,4]
[321045387,1711816508749,-1260.91,0.00039555,4]
[321045388,1711816515441,500.0,0.00039555,4]
[321045390,1711816871260,-235.12865548,0.00038872,2]
[321045393,1711817015122,154.93802479,0.00019,2]
[321045394,1711817034435,155.03097831,0.00019,2]
[321045395,1711817060304,155.03255684,0.00019,2]
[321045396,1711817078380,155.3436721,0.00019,2]
[321045397,1711817228226,-500.0,0.00038,4]
[321045398,1711817228246,-171.704629,0.00038364,2]
[321045399,1711817228267,-156.75243699,0.00038872,2]
[321045400,1711817228287,-325.36181039,0.00039002,4]
[321045401,1711817228310,-181.12242218,0.00039454,2]
[321045402,1711817228330,-400.0,0.00039552,5]
[321045403,1711817228355,-20531.85815495,0.00039553,2]
[321045404,1711817228378,-500.0,0.00039554,4]
[321045405,1711817228400,-500.0,0.00039554,4]
[321045406,1711817228421,-500.0,0.00039554,4]
[321045407,1711817228441,-678.76,0.00039554,4]
[321045408,1711817228462,-500.0,0.00039554,4]
[321045409,1711817228484,-500.0,0.00039554,4]
[321045410,1711817228504,-778.96,0.00039554,4]
[321045411,1711817228605,-500.0,0.00039554,4]
[321045412,1711817228626,-500.0,0.00039554,4]
[321045413,1711817228647,-500.0,0.00039554,4]
[321045414,1711817228667,-500.0,0.00039554,4]
[321045415,1711817228689,-2301.47,0.00039554,4]
[321045416,1711817228710,-500.0,0.00039554,4]
[321045417,1711817228731,-1180.84,0.00039554,4]
[321045418,1711817228751,-1990.53,0.00039554,4]
[321045419,1711817228771,-549.95,0.00039554,4]
[321045420,1711817228792,-619.99,0.00039554,4]
[321045421,1711817228813,-1964.3,0.00039554,4]
[321045422,1711817228833,-577.83,0.00039554,4]
[321045423,1711817228854,-2329.77,0.00039554,4]
[321045424,1711817228881,-8672.7190497,0.00039554,4]
[321045425,1711817254105,-1802.4009503,0.00039554,4]
[321045426,1711817254134,-3600.66,0.00039554,4]
[321045427,1711817254159,-500.0,0.00039554,4]
[321045428,1711817254182,-500.0,0.00039554,4]
[321045429,1711817254309,-500.0,0.00039554,4]
[321045430,1711817254344,-500.0,0.00039554,4]
[321045431,1711817254366,-500.0,0.00039554,4]
[321045432,1711817254385,-500.0,0.00039554,4]
[321045433,1711817254405,-1208.37,0.00039554,4]
[321045434,1711817254425,-500.0,0.00039554,4]
[321045435,1711817254446,-500.0,0.00039554,4]
[321045436,1711817254466,-500.0,0.00039554,4]
[321045437,1711817254485,-500.0,0.00039554,4]
[321045438,1711817254505,-2686.04,0.00039554,4]
[321045439,1711817254524,-225.3316458,0.00039555,2]
[321045440,1711817254545,-158.87149199,0.00039699,9]
[321045441,1711817254564,-1000.0,0.000397,2]
[321045442,1711817254585,-181.12242218,0.00039728,2]
[321045443,1711817254606,-500.0,0.00039798,31]